Service area,Service sub division,TVBC Service,Expense type,Detailed expense type,TVBC account code,Date Paid,Transaction Reference,Nett Value,Supplier Name
Cultural & Related,Recreation & Sport,Community and Leisure ,Third Party Payments,Other Establishments,ALC Management Contract-TVL,18/06/2015,155532,-34500,Valley Leisure Ltd
Cultural & Related,Recreation & Sport,Community and Leisure ,Third Party Payments,Other Establishments,ALC Management Contract-TVL,18/06/2015,155531,-3263.88,Valley Leisure Ltd
External Trading Accounts,Industrial Estates,Estates and Economic Development ,Premises related Expenditure,Water Services,Water And Sewerage Charges,04/06/2015,153197,-1121.18,Southern Water
Central Services to the Public,Management & Support Services,Estates and Economic Development ,Premises related Expenditure,Energy Costs,Gas,18/06/2015,154722,-894.4,Total Gas & Power Ltd
Cultural & Related,Culture & Heritage,Estates and Economic Development ,Premises related Expenditure,Energy Costs,Gas,18/06/2015,154723,-541.78,Total Gas & Power Ltd
Environmental & Regulatory,Regulatory Services,Estates and Economic Development ,Premises related Expenditure,Water Services,Water And Sewerage Charges,04/06/2015,153196,-625.98,Southern Water
Planning & Development,Community Development,Community and Leisure ,Supplies & Services,Grants & Subscriptions,Grants,10/06/2015,156498,500,Friends Of Hatherden School
Planning & Development,Economic Development,Estates and Economic Development ,Supplies & Services,Grants & Subscriptions,Grants,24/06/2015,157565,500,Eve'S Garden
Planning & Development,Economic Development,Estates and Economic Development ,Supplies & Services,Grants & Subscriptions,Grants,10/06/2015,156504,500,Tip Top Balloons Ltd
Cultural & Related,Open Spaces,Environmental,Supplies & Services,Communications & Computing,Mobile Telephone Charges,25/06/2015,157064,156.59,Vodafone Limited
Environmental & Regulatory,Street Cleansing (not chargeable to Highways),Environmental,Supplies & Services,Communications & Computing,Mobile Telephone Charges,25/06/2015,157064,113.98,Vodafone Limited
Environmental & Regulatory,Waste management,Environmental,Supplies & Services,Communications & Computing,Mobile Telephone Charges,25/06/2015,157064,102.57,Vodafone Limited
Central Services to the Public,Management & Support Services,Environmental,Supplies & Services,Communications & Computing,Mobile Telephone Charges,25/06/2015,157064,24.97,Vodafone Limited
Central Services to the Public,Management & Support Services,Environmental,Supplies & Services,Communications & Computing,Mobile Telephone Charges,25/06/2015,157064,24.7,Vodafone Limited
Planning & Development,Planning Policy,Plan Pol & Transport,Supplies & Services,Services,Training Courses,04/06/2015,155986,424,Solace
Cultural & Related,Open Spaces,Environmental,Supplies & Services,"Equipment, Furniture & Materials",Purchases for playgrounds,18/06/2015,156981,424.67,Smrs Fabrication & Welding Ltd
Environmental & Regulatory,Regulatory Services,Estates and Economic Development ,Supplies & Services,"Equipment, Furniture & Materials",Purchase Equip + Materials,04/06/2015,156034,435.75,Cjs Portsmouth Ltd
Environmental & Regulatory,Regulatory Services,Estates and Economic Development ,Supplies & Services,"Equipment, Furniture & Materials",Purchase Materials (Job Cost),04/06/2015,156034,5.7,Cjs Portsmouth Ltd
Cultural & Related,Open Spaces,Environmental,Supplies & Services,"Equipment, Furniture & Materials",Purchases for playgrounds,18/06/2015,156980,447.74,Smrs Fabrication & Welding Ltd
Environmental & Regulatory,Waste management,Environmental,Employees,Indirect Employee Expenses,Agency Staff - Waged Posts,25/06/2015,157516,449.1,Active Staff Ltd
Planning & Development,Planning Policy,Plan Pol & Transport,Supplies & Services,"Printing, Stationery & General Office Expenses",External Printing,11/06/2015,156399,2.1,Personal data - Data Protection Act 1998
Planning & Development,Planning Policy,Plan Pol & Transport,Supplies & Services,"Printing, Stationery & General Office Expenses",Postage Costs,11/06/2015,156399,2.36,Personal data - Data Protection Act 1998
Planning & Development,Planning Policy,Plan Pol & Transport,Supplies & Services,Services,Project Consultancy - Policy,11/06/2015,156399,543.8,Personal data - Data Protection Act 1998
Planning & Development,Community Development,Community and Leisure ,Supplies & Services,Grants & Subscriptions,Grants,25/06/2015,157316,556.87,Pearl & Coutts Ltd
Cultural & Related,Culture & Heritage,Estates and Economic Development ,Supplies & Services,"Printing, Stationery & General Office Expenses",Photocopying Costs,18/06/2015,153173,465.11,Ricoh Uk Ltd
Central Services to the Public,Management & Support Services,Housing and Environmental Health ,Supplies & Services,"Printing, Stationery & General Office Expenses",Photocopying Costs,25/06/2015,156897,466.75,Ricoh Uk Ltd
Central Services to the Public,Management & Support Services,Estates and Economic Development ,Third Party Payments,Other Establishments,Private Contractors,25/06/2015,157535,470,Gibson & Co Ceilings
Cultural & Related,Recreation & Sport,Community and Leisure ,Premises related Expenditure,Grounds Maintenance Costs,Gm - Additional Works,04/06/2015,155825,470,Personal data - Data Protection Act 1998
Cultural & Related,Open Spaces,Environmental,Transport Related Expenditure,Direct Transport Costs,Petrol,11/06/2015,155995,455.53,Fuel Card Services Ltd
Environmental & Regulatory,Street Cleansing (not chargeable to Highways),Environmental,Transport Related Expenditure,Direct Transport Costs,Petrol,11/06/2015,155995,16.18,Fuel Card Services Ltd
Central Services to the Public,Management & Support Services,Estates and Economic Development ,Premises related Expenditure,Energy Costs,Gas,18/06/2015,155296,473.44,Total Gas & Power Ltd
Central Services to the Public,Management & Support Services,Chief Executive's,Supplies & Services,Services,Training Courses,25/06/2015,157644,160,Hampshire County Council
Central Services to the Public,Management & Support Services,Finance,Supplies & Services,Services,Training Courses,25/06/2015,157644,160,Hampshire County Council
Central Services to the Public,Management & Support Services,Revenues,Supplies & Services,Services,Training Courses,25/06/2015,157644,160,Hampshire County Council
Environmental & Regulatory,Waste management,Environmental,Transport Related Expenditure,Direct Transport Costs,Repair Materials,04/06/2015,155530,483.74,Dennis Eagle Ltd
Central Services to the Public,Management & Support Services,Chief Executive's,Employees,Indirect Employee Expenses,Temporary Staff,11/06/2015,155860,483.99,Personnel Selection
Planning & Development,Development Control,Planning & Building,Employees,Indirect Employee Expenses,Temporary Staff,25/06/2015,157649,489.6,Matchtech Group Uk Ltd
Central Services to the Public,Management & Support Services,Chief Executive's,Employees,Indirect Employee Expenses,Temporary Staff,25/06/2015,157285,490.62,Personnel Selection
Central Services to the Public,Management & Support Services,Chief Executive's,Employees,Indirect Employee Expenses,Temporary Staff,11/06/2015,155861,493.94,Personnel Selection
Central Services to the Public,Management & Support Services,IT,Supplies & Services,Services,Project Consultancy - Systems,25/06/2015,157645,495,Vodafone Ltd
Cultural & Related,Open Spaces,Environmental,Third Party Payments,Other Establishments,Private Contractors,25/06/2015,157698,594.12,Ivan Gibson Agricultural Contractor
Planning & Development,Development Control,Planning & Building,Supplies & Services,Services,Project Consultancy - Policy,25/06/2015,157247,500,Reading Agricultural Consultants Ltd
Environmental & Regulatory,Street Cleansing (not chargeable to Highways),Environmental,Supplies & Services,"Equipment, Furniture & Materials",Purchase Equip + Materials,18/06/2015,156876,500,Ssi Schaefer Ltd
External Trading Accounts,Industrial Estates,Estates and Economic Development ,Supplies & Services,Communications & Computing,Land Line Telephone Charges,18/06/2015,156511,28.04,Virgin Media Payments Ltd
Cultural & Related,Culture & Heritage,Estates and Economic Development ,Supplies & Services,Communications & Computing,Land Line Telephone Charges,18/06/2015,156511,40.45,Virgin Media Payments Ltd
Cultural & Related,Culture & Heritage,Estates and Economic Development ,Supplies & Services,Communications & Computing,Land Line Telephone Charges,18/06/2015,156511,39.17,Virgin Media Payments Ltd
Central Services to the Public,Management & Support Services,IT,Supplies & Services,Communications & Computing,Communication Links,18/06/2015,156511,26,Virgin Media Payments Ltd
Central Services to the Public,Management & Support Services,IT,Supplies & Services,Communications & Computing,Communication Links,18/06/2015,156511,67.02,Virgin Media Payments Ltd
Cultural & Related,Recreation & Sport,Community and Leisure ,Supplies & Services,Communications & Computing,Land Line Telephone Charges,18/06/2015,156511,26,Virgin Media Payments Ltd
Cultural & Related,Recreation & Sport,Community and Leisure ,Supplies & Services,Communications & Computing,Land Line Telephone Charges,18/06/2015,156511,14.09,Virgin Media Payments Ltd
Cultural & Related,Recreation & Sport,Community and Leisure ,Supplies & Services,Communications & Computing,Land Line Telephone Charges,18/06/2015,156511,13,Virgin Media Payments Ltd
Cultural & Related,Culture & Heritage,Community and Leisure ,Supplies & Services,Communications & Computing,Communication Links,18/06/2015,156511,52.1,Virgin Media Payments Ltd
"Highways, Roads & Transport",Parking Services,Plan Pol & Transport,Supplies & Services,Communications & Computing,Alarm Lines,18/06/2015,156511,37.03,Virgin Media Payments Ltd
Central Services to the Public,Management & Support Services,Environmental,Supplies & Services,Communications & Computing,Land Line Telephone Charges,18/06/2015,156511,66.82,Virgin Media Payments Ltd
Central Services to the Public,Emergency Planning,Corporate & Democratic,Supplies & Services,Communications & Computing,Land Line Telephone Charges,18/06/2015,156511,91,Virgin Media Payments Ltd
Central Services to the Public,Management & Support Services,Estates and Economic Development ,Premises related Expenditure,Energy Costs,Gas,18/06/2015,155294,505.06,Total Gas & Power Ltd
Central Services to the Public,Management & Support Services,Chief Executive's,Supplies & Services,Services,External Training Consultants,18/06/2015,156329,526.29,Nationwide Training Limited
Central Services to the Public,Management & Support Services,Estates and Economic Development ,Third Party Payments,Other Establishments,Private Contractors,04/06/2015,156029,532.15,Gibson & Co Ceilings
Environmental & Regulatory,Street Cleansing (not chargeable to Highways),Environmental,Employees,Indirect Employee Expenses,Agency Staff - Waged Posts,11/06/2015,156541,532.94,365 Supply Ltd
External Trading Accounts,Industrial Estates,Estates and Economic Development ,Supplies & Services,Miscellaneous Expenses,Waste Collection,25/06/2015,157642,535.5,Basingstoke Skip Hire & Sthrn Waste Mgt Ltd
Central Services to the Public,Management & Support Services,Estates and Economic Development ,Premises related Expenditure,Energy Costs,Gas,18/06/2015,155295,535.68,Total Gas & Power Ltd
Central Services to the Public,Management & Support Services,Estates and Economic Development ,Transport Related Expenditure,Direct Transport Costs,External Garages,17/06/2015,156373,396,Bodyshop24
Central Services to the Public,Management & Support Services,Estates and Economic Development ,Transport Related Expenditure,Direct Transport Costs,Repair Materials,17/06/2015,156373,140,Bodyshop24
Cultural & Related,Open Spaces,Environmental,Employees,Indirect Employee Expenses,Agency Staff - Waged Posts,18/06/2015,156878,537.5,365 Supply Ltd
Cultural & Related,Open Spaces,Environmental,Supplies & Services,"Equipment, Furniture & Materials",Purchases for playgrounds,18/06/2015,156625,540.25,Gb Sport & Leisure Uk Ltd
Cultural & Related,Open Spaces,Environmental,Third Party Payments,Other Establishments,Private Contractors,11/06/2015,156311,660.7,Ivan Gibson Agricultural Contractor
Central Services to the Public,Emergency Planning,Corporate & Democratic,Supplies & Services,Grants & Subscriptions,Grants,25/06/2015,157728,667.42,Personal data - Data Protection Act 1998
Central Services to the Public,Local Tax Collection,Revenues,Supplies & Services,"Equipment, Furniture & Materials",Equipment Lease Rentals,18/06/2015,156895,55.74,Ricoh Uk Ltd
Central Services to the Public,Local Tax Collection,Revenues,Supplies & Services,"Equipment, Furniture & Materials",Equipment Lease Rentals,18/06/2015,156895,222.97,Ricoh Uk Ltd
Housing Services,Housing Benefits ,Revenues,Supplies & Services,"Equipment, Furniture & Materials",Equipment Lease Rentals,18/06/2015,156895,139.36,Ricoh Uk Ltd
Central Services to the Public,Local Tax Collection,Revenues,Supplies & Services,"Equipment, Furniture & Materials",Equipment Lease Rentals,18/06/2015,156895,139.35,Ricoh Uk Ltd
Central Services to the Public,Management & Support Services,Estates and Economic Development ,Premises related Expenditure,Repairs Alterations & Maintenance of Buildings,Planned Maintenance - Non Est,11/06/2015,156675,558.29,Btu Installation & Maintenance Ltd
Cultural & Related,Culture & Heritage,Community and Leisure ,Supplies & Services,Catering,Non-Contract Catering,18/06/2015,156614,583.08,Carlsberg Uk Ltd
Cultural & Related,Culture & Heritage,Community and Leisure ,Supplies & Services,Catering,Non-Contract Catering,18/06/2015,157052,586.72,Carlsberg Uk Ltd
Environmental & Regulatory,"Cemetery, Cremation and Mortuary Services",Community and Leisure ,Premises related Expenditure,Grounds Maintenance Costs,Gm - Additional Works,25/06/2015,157054,704.28,St Peters Church
Environmental & Regulatory,Regulatory Services,Housing and Environmental Health ,Supplies & Services,Services,Project Consultancy - Policy,11/06/2015,156047,588.56,Eurofins Environmental Testing Uk Ltd
Central Services to the Public,Management & Support Services,Estates and Economic Development ,Supplies & Services,"Equipment, Furniture & Materials",Purchase Materials (Job Cost),04/06/2015,156094,598.9,Buildbase Ltd
"Highways, Roads & Transport",Highways and roads - maintenance,Plan Pol & Transport,Premises related Expenditure,Repairs Alterations & Maintenance of Buildings,Highways Repairs,25/06/2015,157673,720,Personal data - Data Protection Act 1998
Central Services to the Public,Management & Support Services,Finance,Supplies & Services,"Printing, Stationery & General Office Expenses",Postage Costs,11/06/2015,156000,620.96,Whistl South West Ltd
Central Services to the Public,Management & Support Services,Environmental,Transport Related Expenditure,Direct Transport Costs,Repair Materials,25/06/2015,157090,621,T H White Ltd
Environmental & Regulatory,Street Cleansing (not chargeable to Highways),Environmental,Supplies & Services,Grants & Subscriptions,Hants Probation Trust,04/06/2015,155802,750,Hampshire & Iow Crc Ltd
Central Services to the Public,Management & Support Services,Finance,Supplies & Services,"Printing, Stationery & General Office Expenses",Photocopying Costs,04/06/2015,155470,627.48,Ricoh Uk Ltd
Environmental & Regulatory,Regulatory Services,Housing and Environmental Health ,Supplies & Services,Grants and subscriptions,Capital Grants,11/06/2015,156116,760,Andover Glass Works Ltd
Cultural & Related,Open Spaces,Community and Leisure ,Supplies & Services,"Equipment, Furniture & Materials",Purchase Equip + Materials,18/06/2015,156649,639.9,Broxap Limited (Stadia Sports )
Central Services to the Public,Management & Support Services,Estates and Economic Development ,Supplies & Services,"Equipment, Furniture & Materials",Purchase Materials (Job Cost),04/06/2015,156104,642.29,Yesss Ltd
Central Services to the Public,Management & Support Services,Estates and Economic Development ,Premises related Expenditure,Energy Costs,Gas,18/06/2015,155293,651.25,Total Gas & Power Ltd
Central Services to the Public,Management & Support Services,Environmental,Transport Related Expenditure,Direct Transport Costs,Repair Materials,25/06/2015,157092,651.65,Kgm Ltd
Central Services to the Public,Management & Support Services,Estates and Economic Development ,Third Party Payments,Other Establishments,Private Contractors,04/06/2015,156051,655.45,Options Flooring Ltd
Cultural & Related,Open Spaces,Environmental,Employees,Indirect Employee Expenses,Agency Staff - Waged Posts,25/06/2015,157331,660.5,365 Supply Ltd
Cultural & Related,Culture & Heritage,Community and Leisure ,Supplies & Services,Miscellaneous Expenses,Promotions / Special Events,04/06/2015,155985,665,Hampshire Media Limited
Cultural & Related,Culture & Heritage,Community and Leisure ,Supplies & Services,Catering,Non-Contract Catering,04/06/2015,155466,668.06,Carlsberg Uk Ltd
Central Services to the Public,Management & Support Services,Estates and Economic Development ,Premises related Expenditure,Energy Costs,Gas,25/06/2015,155628,686.09,Total Gas & Power Ltd
Cultural & Related,Recreation & Sport,Community and Leisure ,Premises related Expenditure,Grounds Maintenance Costs,Gm - Additional Works,04/06/2015,154693,704,Kingcombe Aquacare Ltd
Planning & Development,Development Control,Planning & Building,Supplies & Services,"Printing, Stationery & General Office Expenses",Postage Costs,25/06/2015,157708,178.5,Royal Mail
Planning & Development,Planning Policy,Plan Pol & Transport,Supplies & Services,"Printing, Stationery & General Office Expenses",Postage Costs,25/06/2015,157708,144.33,Royal Mail
Central Services,Corporate & Democratic Core,Corporate & Democratic,Supplies & Services,"Printing, Stationery & General Office Expenses",Postage Costs,25/06/2015,157708,399.74,Royal Mail
Planning & Development,Development Control,Planning & Building,Employees,Indirect Employee Expenses,Temporary Staff,25/06/2015,157108,736.4,Oyster Partnership
Central Services to the Public,Elections,Legal & Democratic,Supplies & Services,"Printing, Stationery & General Office Expenses",Postage Costs,25/06/2015,157053,760.2,Financial Data Management Plc
Central Services to the Public,Management & Support Services,Finance,Supplies & Services,Grants & Subscriptions,Subscriptions,18/06/2015,156618,834.94,Wolters Kluwer (Uk) Limited
Environmental & Regulatory,Street Cleansing (not chargeable to Highways),Environmental,Transport Related Expenditure,Direct Transport Costs,Repair Materials,04/06/2015,155848,265,Adams Morey Ltd
Environmental & Regulatory,Waste management,Environmental,Transport Related Expenditure,Direct Transport Costs,Repair Materials,04/06/2015,155848,530,Adams Morey Ltd
Cultural & Related,Open Spaces,Environmental,Third Party Payments,Other Establishments,Private Contractors,18/06/2015,156889,966.31,Ivan Gibson Agricultural Contractor
Central Services to the Public,Management & Support Services,IT,Supplies & Services,Communications & Computing,Land Line Telephone Charges,11/06/2015,156526,805.69,Virgin Media Payments Ltd
Central Services to the Public,Management & Support Services,Chief Executive's,Supplies & Services,Services,Training Courses,25/06/2015,157296,987,Laria
Planning & Development,Community Development,Community and Leisure ,Supplies & Services,Grants & Subscriptions,Grants,24/06/2015,157562,1000,Enham Trust
Central Services,Corporate & Democratic Core,Corporate & Democratic,Supplies & Services,Services,Professional Advice,04/06/2015,154666,833.33,Coffin Mew Llp
Planning & Development,Economic Development,Estates and Economic Development ,Supplies & Services,Services,Training Courses,04/06/2015,155814,1000,Perfect Bore Manufacturing Ltd
Cultural & Related,Open Spaces,Community and Leisure ,Supplies & Services,"Equipment, Furniture & Materials",Purchase Equip + Materials,18/06/2015,156880,840,Mainwaring Ditch Associates
Central Services to the Public,Emergency Planning,Corporate & Democratic,Supplies & Services,Grants & Subscriptions,Grants,11/06/2015,156692,1010,Stockbridge Parish Council
Cultural & Related,Culture & Heritage,Estates and Economic Development ,Premises related Expenditure,Energy Costs,Gas,18/06/2015,154823,845.54,Total Gas & Power Ltd
Planning & Development,Community Development,Community and Leisure ,Supplies & Services,Grants & Subscriptions,Grants,10/06/2015,156547,1017.1,North Baddesley Village Hall
Central Services to the Public,Management & Support Services,Estates and Economic Development ,Supplies & Services,Communications & Computing,Telephone Tracking System,18/06/2015,156350,60,Ctrack Uk Limited
Environmental & Regulatory,Regulatory Services,Estates and Economic Development ,Supplies & Services,Communications & Computing,Telephone Tracking System,18/06/2015,156350,20,Ctrack Uk Limited
Cultural & Related,Open Spaces,Environmental,Supplies & Services,Communications & Computing,Telephone Tracking System,18/06/2015,156350,280,Ctrack Uk Limited
Environmental & Regulatory,Street Cleansing (not chargeable to Highways),Environmental,Supplies & Services,Communications & Computing,Telephone Tracking System,18/06/2015,156350,230,Ctrack Uk Limited
Environmental & Regulatory,Waste management,Environmental,Supplies & Services,Communications & Computing,Telephone Tracking System,18/06/2015,156350,210,Ctrack Uk Limited
Environmental & Regulatory,Waste management,Environmental,Supplies & Services,Communications & Computing,Telephone Tracking System,18/06/2015,156350,20,Ctrack Uk Limited
Central Services to the Public,Management & Support Services,Environmental,Supplies & Services,Communications & Computing,Telephone Tracking System,18/06/2015,156350,30,Ctrack Uk Limited
Central Services to the Public,Management & Support Services,Estates and Economic Development ,Premises related Expenditure,Water Services,Water And Sewerage Charges,04/06/2015,153918,1023.42,Southern Water
Cultural & Related,Culture & Heritage,Community and Leisure ,Supplies & Services,Catering,Caf�/ bar consumables,11/06/2015,156392,21.42,Carlsberg Uk Ltd
Cultural & Related,Culture & Heritage,Community and Leisure ,Supplies & Services,Catering,Non-Contract Catering,11/06/2015,156392,833.53,Carlsberg Uk Ltd
Environmental & Regulatory,Street Cleansing (not chargeable to Highways),Environmental,Employees,Indirect Employee Expenses,Agency Staff - Waged Posts,11/06/2015,156545,856.8,365 Supply Ltd
Cultural & Related,Open Spaces,Community and Leisure ,Supplies & Services,"Equipment, Furniture & Materials",Purchase Equip + Materials,11/06/2015,155857,875,Fernden Construction (Winchester) Ltd
Central Services to the Public,Management & Support Services,Chief Executive's,Supplies & Services,"Equipment, Furniture & Materials",Purchase Equip + Materials,24/06/2015,156641,880.45,Corptel Uk
Environmental & Regulatory,Street Cleansing (not chargeable to Highways),Environmental,Transport Related Expenditure,Contract Hire and Operating Leases,Vehicles-Hired\Leased,25/06/2015,157103,900,Allied Driving Schools Ltd
Central Services to the Public,Management & Support Services,Finance,Supplies & Services,Services,Project Consultancy - Policy,18/06/2015,156973,900,Public Sector Consultants
Planning & Development,Economic Development,Estates and Economic Development ,Supplies & Services,Services,Training Courses,25/06/2015,157248,1100,Oaktree Business Management
Central Services to the Public,Management & Support Services,Finance,Supplies & Services,"Printing, Stationery & General Office Expenses",Postage Costs,04/06/2015,154118,932.4,Whistl South West Ltd
Central Services to the Public,Emergency Planning,Corporate & Democratic,Supplies & Services,Grants & Subscriptions,Grants,25/06/2015,157709,1130,Personal data - Data Protection Act 1998
Planning & Development,Development Control,Planning & Building,Supplies & Services,Miscellaneous Expenses,Planning Appeal Costs,18/06/2015,156910,950,Wyg Environment Planning Transport Ltd
Cultural & Related,Open Spaces,Community and Leisure ,Premises related Expenditure,Grounds Maintenance Costs,Gm - Additional Works,25/06/2015,157338,955,Personal data - Data Protection Act 1998
Cultural & Related,Recreation & Sport,Community and Leisure ,Third Party Payments,Private contractors,Main Contractor Costs,18/06/2015,156892,957.62,The Genesis Design Studio Ltd
Cultural & Related,Culture & Heritage,Community and Leisure ,Supplies & Services,Miscellaneous Expenses,Promotions / Special Events,18/06/2015,156859,1165,Tinklertastic Ltd
Cultural & Related,Culture & Heritage,Estates and Economic Development ,Premises related Expenditure,Repairs Alterations & Maintenance of Buildings,Building Maint - Non Estates,11/06/2015,156661,1004.71,Kone Plc
Cultural & Related,Open Spaces,Environmental,Employees,Indirect Employee Expenses,Agency Staff - Waged Posts,25/06/2015,157335,1006.67,365 Supply Ltd
Central Services to the Public,Management & Support Services,Estates and Economic Development ,Premises related Expenditure,Energy Costs,Gas,18/06/2015,155625,1022.25,Total Gas & Power Ltd
Central Services to the Public,Management & Support Services,Finance,Supplies & Services,"Printing, Stationery & General Office Expenses",Postage Costs,25/06/2015,157237,1061.5,Whistl South West Ltd
Central Services to the Public,Management & Support Services,Estates and Economic Development ,Third Party Payments,Other Establishments,Private Contractors,04/06/2015,156038,1072.5,Polytan Sports Surfaces (Uk) Ltd
Central Services to the Public,Management & Support Services,Environmental,Supplies & Services,"Equipment, Furniture & Materials",Maintenance Equip + Materials,25/06/2015,157101,1082.17,Totalkare H.D.W.S Ltd
Central Services to the Public,Management & Support Services,Plan Pol & Transport,Premises related Expenditure,Repairs Alterations & Maintenance of Buildings,General Repairs,04/06/2015,154684,1085,Purbeck Civil Engineering Limited
Environmental & Regulatory,Waste management,Environmental,Transport Related Expenditure,Direct Transport Costs,Repair Materials,18/06/2015,156347,1103.84,Dennis Eagle Ltd
Central Services to the Public,Elections,Legal & Democratic,Premises related Expenditure,Rents,Premises Hire,11/06/2015,156310,446.2,Wernick Event Hire Ltd
Central Services to the Public,Elections,Legal & Democratic,Premises related Expenditure,Rents,Premises Hire,11/06/2015,156310,446.2,Wernick Event Hire Ltd
Central Services to the Public,Local Tax Collection,Revenues,Supplies & Services,Services,External Training Consultants,17/06/2015,156336,625,Airey Consultancy Services Ltd
Central Services to the Public,Local Tax Collection,Revenues,Supplies & Services,Services,Professional Fees,17/06/2015,156336,500,Airey Consultancy Services Ltd
Central Services to the Public,Management & Support Services,Finance,Supplies & Services,"Printing, Stationery & General Office Expenses",Postage Costs,04/06/2015,154900,1135.07,Whistl South West Ltd
Central Services to the Public,Elections,Legal & Democratic,Premises related Expenditure,Rents,Premises Hire,11/06/2015,156309,458.2,Wernick Event Hire Ltd
Central Services to the Public,Elections,Legal & Democratic,Premises related Expenditure,Rents,Premises Hire,11/06/2015,156309,458.2,Wernick Event Hire Ltd
Environmental & Regulatory,Regulatory Services,Estates and Economic Development ,Premises related Expenditure,Water Services,Water And Sewerage Charges,18/06/2015,156888,1375.96,Southern Water
"Highways, Roads & Transport",Public Transport,Plan Pol & Transport,Third Party Payments,Transport Operators in Respect of Concessionary Fares,Voluntary Orgs Reimbursement,18/06/2015,157117,1381.5,Romsey Good Neighbours
Central Services to the Public,Elections,Legal & Democratic,Premises related Expenditure,Rents,Premises Hire,11/06/2015,156307,692.1,Wernick Event Hire Ltd
Planning & Development,Development Control,Planning & Building,Employees,Indirect Employee Expenses,Temporary Staff,25/06/2015,157295,1156,Oyster Partnership
Cultural & Related,Open Spaces,Community and Leisure ,Supplies & Services,"Equipment, Furniture & Materials",Purchase Equip + Materials,18/06/2015,156398,1164.7,Downs View Nurseries Ltd
Cultural & Related,Culture & Heritage,Community and Leisure ,Supplies & Services,"Printing, Stationery & General Office Expenses",Licences / Affiliation Fees,24/06/2015,156904,1167.15,Prs For Music
Central Services to the Public,Management & Support Services,Estates and Economic Development ,Premises related Expenditure,Energy Costs,Gas,18/06/2015,154819,1208.93,Total Gas & Power Ltd
Cultural & Related,Open Spaces,Environmental,Employees,Indirect Employee Expenses,Agency Staff - Waged Posts,25/06/2015,157332,1147.87,365 Supply Ltd
Environmental & Regulatory,Waste management,Environmental,Employees,Indirect Employee Expenses,Agency Staff - Waged Posts,25/06/2015,157332,61.52,365 Supply Ltd
Environmental & Regulatory,Regulatory Services,Housing and Environmental Health ,Supplies & Services,Grants and subscriptions,Capital Grants,25/06/2015,157724,1468,Epw Construction
Cultural & Related,Open Spaces,Environmental,Transport Related Expenditure,Direct Transport Costs,External Garages,18/06/2015,156352,816,T H White Ltd
Cultural & Related,Open Spaces,Environmental,Transport Related Expenditure,Direct Transport Costs,Repair Materials,18/06/2015,156352,429.38,T H White Ltd
Housing Services,Housing Benefits ,Revenues,Supplies & Services,Services,Professional Fees,03/06/2015,155621,1250,Airey Consultancy Services Ltd
Central Services to the Public,Elections,Legal & Democratic,Premises related Expenditure,Rents,Premises Hire,11/06/2015,156102,756.3,Wernick Event Hire Ltd
Central Services to the Public,Management & Support Services,IT,Supplies & Services,Communications & Computing,Software Maintenance,25/06/2015,157336,1269,Voodoo Technology Ltd
Cultural & Related,Open Spaces,Environmental,Employees,Indirect Employee Expenses,Agency Staff - Waged Posts,25/06/2015,157334,1279.96,365 Supply Ltd
Central Services to the Public,Management & Support Services,Finance,Supplies & Services,"Printing, Stationery & General Office Expenses",Postage Costs,11/06/2015,155815,1296.49,Whistl South West Ltd
Central Services to the Public,Management & Support Services,Finance,Supplies & Services,"Printing, Stationery & General Office Expenses",Postage Costs,25/06/2015,156633,1297.18,Whistl South West Ltd
"Highways, Roads & Transport",Public Transport,Plan Pol & Transport,Third Party Payments,Transport Operators in Respect of Concessionary Fares,Voluntary Orgs Reimbursement,04/06/2015,155624,1585,Andover Neighbourcare
Central Services to the Public,Elections,Legal & Democratic,Premises related Expenditure,Rents,Premises Hire,11/06/2015,156308,800.7,Wernick Event Hire Ltd
Environmental & Regulatory,Waste management,Environmental,Employees,Indirect Employee Expenses,Agency Staff - Waged Posts,25/06/2015,157330,1341.57,Abacus Employment Services Ltd
Cultural & Related,Open Spaces,Environmental,Employees,Indirect Employee Expenses,Agency Staff - Waged Posts,11/06/2015,156539,1348.28,365 Supply Ltd
"Highways, Roads & Transport",Public Transport,Plan Pol & Transport,Third Party Payments,Transport Operators in Respect of Concessionary Fares,Voluntary Orgs Reimbursement,25/06/2015,156867,1618,Andover Neighbourcare
Environmental & Regulatory,Regulatory Services,Housing and Environmental Health ,Supplies & Services,Grants and subscriptions,Capital Grants,11/06/2015,156676,1627,Prism Medical Uk
Environmental & Regulatory,Waste management,Environmental,Employees,Indirect Employee Expenses,Agency Staff - Waged Posts,11/06/2015,156645,1400.62,Abacus Employment Services Ltd
Cultural & Related,Open Spaces,Community and Leisure ,Supplies & Services,"Equipment, Furniture & Materials",Purchase Equip + Materials,18/06/2015,155813,1415.25,Intratest Ltd
Central Services to the Public,Management & Support Services,Plan Pol & Transport,Premises related Expenditure,Repairs Alterations & Maintenance of Buildings,General Repairs,25/06/2015,157059,1425,Signway Supplies (Datchet Ltd)
Central Services to the Public,Management & Support Services,Finance,Supplies & Services,"Printing, Stationery & General Office Expenses",Postage Costs,04/06/2015,154352,1425.31,Whistl South West Ltd
Cultural & Related,Culture & Heritage,Community and Leisure ,Premises related Expenditure,Energy Costs,Electricity,25/06/2015,157240,1017.36,Sparsholt College Hampshire
Cultural & Related,Culture & Heritage,Community and Leisure ,Premises related Expenditure,Energy Costs,Gas,25/06/2015,157240,198.78,Sparsholt College Hampshire
Cultural & Related,Culture & Heritage,Community and Leisure ,Premises related Expenditure,Water Services,Water And Sewerage Charges,25/06/2015,157240,254.34,Sparsholt College Hampshire
Environmental & Regulatory,Street Cleansing (not chargeable to Highways),Environmental,Transport Related Expenditure,Direct Transport Costs,Repair Materials,25/06/2015,157091,1428.72,Johnston Sweepers Ltd
Cultural & Related,Recreation & Sport,Community and Leisure ,Premises related Expenditure,Grounds Maintenance Costs,Gm - Additional Works,11/06/2015,155460,717,Kingcombe Aquacare Ltd
Cultural & Related,Open Spaces,Community and Leisure ,Premises related Expenditure,Grounds Maintenance Costs,Gm - Additional Works,11/06/2015,155460,717,Kingcombe Aquacare Ltd
Cultural & Related,Open Spaces,Environmental,Supplies & Services,"Equipment, Furniture & Materials",Purchase Equip + Materials,04/06/2015,155365,1440,Fleet (Line Markers) Ltd
Central Services to the Public,Local Tax Collection,Revenues,Supplies & Services,Miscellaneous Expenses,All Pay Fees,11/06/2015,156529,1708.95,Allpay Limited
Central Services to the Public,Management & Support Services,IT,Supplies & Services,Services,Project Consultancy - Systems,18/06/2015,156609,1450,Civica Uk Ltd
Central Services to the Public,Emergency Planning,Corporate & Democratic,Supplies & Services,Grants & Subscriptions,Grants,18/06/2015,157111,1740,Personal data - Data Protection Act 1998
Environmental & Regulatory,Waste management,Environmental,Transport Related Expenditure,Direct Transport Costs,External Garages,04/06/2015,155615,526,Dennis Eagle Ltd
Environmental & Regulatory,Waste management,Environmental,Transport Related Expenditure,Direct Transport Costs,Repair Materials,04/06/2015,155615,937.4,Dennis Eagle Ltd
Planning & Development,Development Control,Planning & Building,Employees,Indirect Employee Expenses,Temporary Staff,18/06/2015,156335,1481.6,Oyster Partnership
Planning & Development,Economic Development,Estates and Economic Development ,Supplies & Services,Services,Professional Fees,11/06/2015,156322,1500,Aecom Professional Services Llp
Central Services to the Public,Management & Support Services,IT,Supplies & Services,Communications & Computing,Software Maintenance,11/06/2015,156626,1500,Phoenix Software Ltd
Cultural & Related,Recreation & Sport,Community and Leisure ,Premises related Expenditure,Repairs Alterations & Maintenance of Buildings,Building Maint - Non Estates,11/06/2015,156652,1500,Dunbar And Boardman
Central Services to the Public,Management & Support Services,Estates and Economic Development ,Premises related Expenditure,Energy Costs,Gas,18/06/2015,154822,1500.75,Total Gas & Power Ltd
Environmental & Regulatory,Waste management,Environmental,Employees,Indirect Employee Expenses,Agency Staff - Waged Posts,11/06/2015,156326,1512.19,Abacus Employment Services Ltd
Planning & Development,Development Control,Planning & Building,Employees,Indirect Employee Expenses,Temporary Staff,18/06/2015,156333,1559.2,Oyster Partnership
Planning & Development,Development Control,Planning & Building,Supplies & Services,Communications & Computing,Hardware Maintenance,25/06/2015,157251,1566,Idox Software Ltd
Cultural & Related,Culture & Heritage,Community and Leisure ,Supplies & Services,Miscellaneous Expenses,Booking Of Acts,11/06/2015,156368,1580.66,Big Ocean Productions Ltd
Central Services to the Public,Emergency Planning,Corporate & Democratic,Supplies & Services,Grants & Subscriptions,Grants,11/06/2015,156672,1918.8,Personal data - Data Protection Act 1998
Environmental & Regulatory,Waste management,Environmental,Employees,Indirect Employee Expenses,Agency Staff - Waged Posts,11/06/2015,156327,1614.56,Abacus Employment Services Ltd
Environmental & Regulatory,Waste management,Environmental,Employees,Indirect Employee Expenses,Agency Staff - Waged Posts,11/06/2015,156328,1665.56,Abacus Employment Services Ltd
Cultural & Related,Culture & Heritage,Community and Leisure ,Supplies & Services,Services,Project Consultancy - Policy,25/06/2015,156860,2000,Personal data - Data Protection Act 1998
Planning & Development,Community Development,Community and Leisure ,Supplies & Services,Grants & Subscriptions,Grants,11/06/2015,156689,2000,Longparish Village Hall
Planning & Development,Community Development,Community and Leisure ,Supplies & Services,Grants & Subscriptions,Grants,25/06/2015,157725,2000,Longparish Village Hall
Central Services to the Public,Management & Support Services,Estates and Economic Development ,Third Party Payments,Other Establishments,Contract Catering,25/06/2015,157110,1667.46,Edwards And Ward Ltd
Central Services to the Public,Management & Support Services,Environmental,Transport Related Expenditure,Direct Transport Costs,Oils,18/06/2015,156634,1668,Fuchs Lubricants (Uk) Plc
Cultural & Related,Open Spaces,Community and Leisure ,Supplies & Services,"Equipment, Furniture & Materials",Purchase Equip + Materials,18/06/2015,156622,1690.25,Hillier Nurseries Limited
Environmental & Regulatory,Regulatory Services,Housing and Environmental Health ,Supplies & Services,Miscellaneous Expenses,Kennel fees,18/06/2015,156631,1674,Newbury Lodge Kennels
Environmental & Regulatory,Street Cleansing (not chargeable to Highways),Environmental,Employees,Indirect Employee Expenses,Agency Staff - Waged Posts,11/06/2015,156540,1685.35,365 Supply Ltd
Central Services to the Public,Management & Support Services,Legal & Democratic,Supplies & Services,Services,Legal Fees,04/06/2015,155822,1713.24,Local Government Association
Environmental & Regulatory,Regulatory Services,Housing and Environmental Health ,Supplies & Services,Grants and subscriptions,Capital Grants,25/06/2015,157723,2080.59,Lifestyle Solutions
Central Services to the Public,Management & Support Services,Estates and Economic Development ,Premises related Expenditure,Repairs Alterations & Maintenance of Buildings,Building Maint - Non Estates,11/06/2015,156324,1746,Dscm Ltd
Environmental & Regulatory,Waste management,Environmental,Employees,Indirect Employee Expenses,Agency Staff - Waged Posts,18/06/2015,156864,1751.81,Abacus Employment Services Ltd
Planning & Development,Community Development,Community and Leisure ,Supplies & Services,Grants & Subscriptions,Grants,25/06/2015,157317,2129.58,Pearl & Coutts Ltd
Central Services to the Public,Elections,Legal & Democratic,Supplies & Services,"Printing, Stationery & General Office Expenses",Postage Costs,04/06/2015,155519,141.5,Royal Mail
Central Services to the Public,Elections,Legal & Democratic,Supplies & Services,"Printing, Stationery & General Office Expenses",Postage Costs,04/06/2015,155519,1028.81,Royal Mail
Environmental & Regulatory,Regulatory Services,Housing and Environmental Health ,Supplies & Services,Grants and subscriptions,Capital Grants,04/06/2015,156113,2289.41,Prb Building Services
Cultural & Related,Open Spaces,Environmental,Supplies & Services,"Equipment, Furniture & Materials",Purchase Equip + Materials,25/06/2015,157094,1909.32,Spaldings (Uk) Limited
Planning & Development,Development Control,Planning & Building,Supplies & Services,"Equipment, Furniture & Materials",Purchase Equip + Materials,11/06/2015,155859,321,Supplies Team Limited
Planning & Development,Development Control,Planning & Building,Supplies & Services,"Printing, Stationery & General Office Expenses",Stationery,11/06/2015,155859,1548.8,Supplies Team Limited
Planning & Development,Development Control,Planning & Building,Supplies & Services,"Printing, Stationery & General Office Expenses",Print Consumables,11/06/2015,155859,63.53,Supplies Team Limited
Central Services to the Public,Management & Support Services,Estates and Economic Development ,Third Party Payments,Other Establishments,Contract Catering,25/06/2015,157109,1940.13,Edwards And Ward Ltd
Environmental & Regulatory,Regulatory Services,Housing and Environmental Health ,Supplies & Services,Grants and subscriptions,Capital Grants,25/06/2015,157120,2334,Andover Glass Works Ltd
Central Services to the Public,Management & Support Services,Estates and Economic Development ,Third Party Payments,Other Establishments,Private Contractors,11/06/2015,156653,1983,Alarms & Electrical (Devizes) Ltd
External Trading Accounts,Industrial Estates,Estates and Economic Development ,Supplies & Services,Services,Professional Fees,04/06/2015,156028,2000,Peter Mitchell Associates
Cultural & Related,Tourism,Estates and Economic Development ,Premises related Expenditure,Repairs Alterations & Maintenance of Buildings,Planned Maintenance - Non Est,04/06/2015,156042,18.75,Temple Lifts Ltd
Cultural & Related,Culture & Heritage,Estates and Economic Development ,Premises related Expenditure,Repairs Alterations & Maintenance of Buildings,Planned Maintenance - Non Est,04/06/2015,156042,193.75,Temple Lifts Ltd
Cultural & Related,Culture & Heritage,Estates and Economic Development ,Premises related Expenditure,Repairs Alterations & Maintenance of Buildings,Planned Maintenance - Non Est,04/06/2015,156042,18.75,Temple Lifts Ltd
Cultural & Related,Recreation & Sport,Community and Leisure ,Premises related Expenditure,Repairs Alterations & Maintenance of Buildings,Planned Maintenance - Non Est,04/06/2015,156042,1550,Temple Lifts Ltd
Cultural & Related,Recreation & Sport,Community and Leisure ,Premises related Expenditure,Repairs Alterations & Maintenance of Buildings,Planned Maintenance - Non Est,04/06/2015,156042,193.75,Temple Lifts Ltd
Cultural & Related,Culture & Heritage,Community and Leisure ,Premises related Expenditure,Repairs Alterations & Maintenance of Buildings,Planned Maintenance - Non Est,04/06/2015,156042,47.5,Temple Lifts Ltd
Environmental & Regulatory,Waste management,Environmental,Employees,Indirect Employee Expenses,Agency Staff - Waged Posts,25/06/2015,156600,2086.16,365 Supply Ltd
Cultural & Related,Recreation & Sport,Community and Leisure ,Supplies & Services,Communications & Computing,Computer Hardware,04/06/2015,155797,2100.38,Artifax Software Ltd
Environmental & Regulatory,Waste management,Environmental,Employees,Indirect Employee Expenses,Agency Staff - Waged Posts,25/06/2015,156593,2140.96,365 Supply Ltd
Central Services to the Public,Management & Support Services,Environmental,Transport Related Expenditure,Direct Transport Costs,Diesel,18/06/2015,156375,2166.14,Wessex Petroleum Limited
"Highways, Roads & Transport",Highways and roads - maintenance,Plan Pol & Transport,Premises related Expenditure,Repairs Alterations & Maintenance of Buildings,Highways Repairs,04/06/2015,155630,2205.39,Irvine Grenson Ltd
External Trading Accounts,Industrial Estates,Estates and Economic Development ,Premises related Expenditure,Repairs Alterations & Maintenance of Buildings,Building Maint - Non Estates,04/06/2015,155957,2206.8,New Forest Fencing Ltd
Cultural & Related,Recreation & Sport,Community and Leisure ,Supplies & Services,Grants and subscriptions,Capital Grants,11/06/2015,156690,2750,Romsey Town Council
Central Services to the Public,Emergency Planning,Corporate & Democratic,Supplies & Services,Grants & Subscriptions,Grants,17/06/2015,156967,2845,Personal data - Data Protection Act 1998
Planning & Development,Economic Development,Estates and Economic Development ,Supplies & Services,Grants & Subscriptions,Grants,04/06/2015,155950,2443.8,Heartflood Ltd
Cultural & Related,Culture & Heritage,Community and Leisure ,Supplies & Services,Miscellaneous Expenses,Booking Of Acts,04/06/2015,155831,2462.17,Barry Collings Entertainments
Central Services to the Public,Management & Support Services,Chief Executive's,Supplies & Services,"Printing, Stationery & General Office Expenses",Conference Costs,11/06/2015,156648,990,Local Government Association
Central Services,Corporate & Democratic Core,Corporate & Democratic,Supplies & Services,"Printing, Stationery & General Office Expenses",Conference Costs,11/06/2015,156648,1485,Local Government Association
"Highways, Roads & Transport",Parking Services,Plan Pol & Transport,Third Party Payments,Private contractors,Main Contractor Costs,24/06/2015,155832,2484.44,Designs For Lighting
Environmental & Regulatory,Waste management,Environmental,Employees,Indirect Employee Expenses,Agency Staff - Waged Posts,18/06/2015,156863,2486.81,Abacus Employment Services Ltd
Planning & Development,Community Development,Community and Leisure ,Supplies & Services,Grants & Subscriptions,Grants,25/06/2015,157323,3000,Age Concern Hampshire Hq
Environmental & Regulatory,Regulatory Services,Housing and Environmental Health ,Supplies & Services,Grants and subscriptions,Capital Grants,04/06/2015,156114,3026.81,Lifestyle Solutions
Environmental & Regulatory,Community Safety,Community and Leisure ,Transport Related Expenditure,Contract Hire and Operating Leases,Leasing rentals,11/06/2015,156080,2560,De Lage Landen Leasing Ltd
Environmental & Regulatory,Regulatory Services,Housing and Environmental Health ,Supplies & Services,Grants and subscriptions,Capital Grants,04/06/2015,156111,3091.4,Bartram Building Maintenance Services
Cultural & Related,Culture & Heritage,Community and Leisure ,Supplies & Services,Miscellaneous Expenses,Booking Of Acts,04/06/2015,155834,2591.58,Live Nation (Music) Uk Ltd
Environmental & Regulatory,Regulatory Services,Housing and Environmental Health ,Supplies & Services,Grants and subscriptions,Capital Grants,11/06/2015,156679,3154.15,Northfield Property Limited
Central Services to the Public,Management & Support Services,Estates and Economic Development ,Premises related Expenditure,Repairs Alterations & Maintenance of Buildings,Building Maint - Non Estates,11/06/2015,156654,2706.31,Vp Bastion Limited
Environmental & Regulatory,Waste management,Environmental,Employees,Indirect Employee Expenses,Agency Staff - Waged Posts,25/06/2015,157671,2711.06,Abacus Employment Services Ltd
Planning & Development,Development Control,Planning & Building,Supplies & Services,Miscellaneous Expenses,Planning Appeal Costs,25/06/2015,157327,2739,Allen Planning Ltd
Cultural & Related,Culture & Heritage,Community and Leisure ,Supplies & Services,Miscellaneous Expenses,Booking Of Acts,04/06/2015,155951,2749.39,Handshake Ltd
Central Services to the Public,Management & Support Services,Environmental,Transport Related Expenditure,Direct Transport Costs,Diesel,25/06/2015,157105,2546.37,Wessex Petroleum Limited
Central Services to the Public,Management & Support Services,Environmental,Transport Related Expenditure,Direct Transport Costs,Red Derv,25/06/2015,157105,239.25,Wessex Petroleum Limited
Cultural & Related,Open Spaces,Environmental,Supplies & Services,"Equipment, Furniture & Materials",Maintenance Equip + Materials,18/06/2015,155807,2762.4,Imperial Polythene Products Ltd
External Trading Accounts,Industrial Estates,Estates and Economic Development ,Supplies & Services,"Equipment, Furniture & Materials",Purchase Equip + Materials,04/06/2015,156046,2922.85,Versa Ltd
Environmental & Regulatory,Waste management,Environmental,Employees,Indirect Employee Expenses,Agency Staff - Waged Posts,25/06/2015,157329,2926.64,365 Supply Ltd
Environmental & Regulatory,Regulatory Services,Housing and Environmental Health ,Supplies & Services,Grants and subscriptions,Capital Grants,04/06/2015,156110,3516.29,Bartram Building Maintenance Services
Cultural & Related,Open Spaces,Community and Leisure ,Supplies & Services,"Equipment, Furniture & Materials",Purchase Equip + Materials,18/06/2015,156391,2990.14,Downs View Nurseries Ltd
Planning & Development,Planning Policy,Plan Pol & Transport,Transport Related Expenditure,Contract Hire and Operating Leases,Officer lease cars,11/06/2015,156632,3636.34,Alphabet (Gb) Ltd
Environmental & Regulatory,Waste management,Environmental,Employees,Indirect Employee Expenses,Agency Staff - Waged Posts,25/06/2015,156549,3192.16,365 Supply Ltd
Central Services to the Public,Management & Support Services,Environmental,Transport Related Expenditure,Direct Transport Costs,Diesel,04/06/2015,155882,2839.8,Wessex Petroleum Limited
Central Services to the Public,Management & Support Services,Environmental,Transport Related Expenditure,Direct Transport Costs,Red Derv,04/06/2015,155882,433.8,Wessex Petroleum Limited
Environmental & Regulatory,Regulatory Services,Housing and Environmental Health ,Supplies & Services,Grants and subscriptions,Capital Grants,04/06/2015,156118,3903.66,Nhp (Romsey) Ltd
Central Services to the Public,Management & Support Services,Chief Executive's,Supplies & Services,Communications & Computing,Software Maintenance,18/06/2015,154432,3340.68,Northgate Public Services Uk Ltd
Central Services to the Public,Elections,Legal & Democratic,Premises related Expenditure,Rents,Premises Hire,18/06/2015,156070,242.37,Valley Leisure Ltd
Central Services to the Public,Elections,Legal & Democratic,Supplies & Services,Catering,Catering,18/06/2015,156070,186.61,Valley Leisure Ltd
Central Services to the Public,Elections,Legal & Democratic,Supplies & Services,Miscellaneous Expenses,Security Services,18/06/2015,156070,22.21,Valley Leisure Ltd
Central Services to the Public,Elections,Legal & Democratic,Premises related Expenditure,Rents,Premises Hire,18/06/2015,156070,806.7,Valley Leisure Ltd
Central Services to the Public,Elections,Legal & Democratic,Supplies & Services,Catering,Catering,18/06/2015,156070,442,Valley Leisure Ltd
Central Services to the Public,Management & Support Services,Finance,Supplies & Services,Services,Project Consultancy - Policy,04/06/2015,155977,3375,Capita Treasury Solutions Ltd
Cultural & Related,Culture & Heritage,Community and Leisure ,Supplies & Services,Miscellaneous Expenses,Booking Of Acts,04/06/2015,155819,3422.7,Brian Shaw Concerts
Central Services to the Public,Emergency Planning,Corporate & Democratic,Supplies & Services,Grants & Subscriptions,Grants,18/06/2015,157112,4129.78,Fuller Smith And Turner Plc
Environmental & Regulatory,Waste management,Environmental,Employees,Indirect Employee Expenses,Agency Staff - Waged Posts,25/06/2015,157328,3504.56,365 Supply Ltd
Central Services to the Public,Elections,Legal & Democratic,Supplies & Services,"Printing, Stationery & General Office Expenses",Postage Costs,11/06/2015,156512,225.46,Royal Mail
Central Services to the Public,Elections,Legal & Democratic,Supplies & Services,"Printing, Stationery & General Office Expenses",Postage Costs,11/06/2015,156512,2037.03,Royal Mail
Environmental & Regulatory,Regulatory Services,Housing and Environmental Health ,Supplies & Services,Grants and subscriptions,Capital Grants,11/06/2015,156688,4360,Bentley Mobility Services
Cultural & Related,Recreation & Sport,Community and Leisure ,Premises related Expenditure,Grounds Maintenance Costs,Gm - Additional Works,04/06/2015,155824,3673,Personal data - Data Protection Act 1998
Central Services to the Public,Management & Support Services,Estates and Economic Development ,Third Party Payments,Other Establishments,Private Contractors,04/06/2015,156100,3765,Select Pumps Ltd T/A Aish Electro-Mechanical
Central Services to the Public,Local Land Charges,Legal & Democratic,Supplies & Services,Miscellaneous Expenses,Land Charges Fees,11/06/2015,156516,4531.95,Hampshire County Council
Central Services to the Public,Management & Support Services,Environmental,Transport Related Expenditure,Direct Transport Costs,Diesel,04/06/2015,155847,3786.4,Wessex Petroleum Limited
Cultural & Related,Recreation & Sport,Community and Leisure ,Third Party Payments,Other Establishments,ALC Management Contract-TVL,18/06/2015,156068,3916.58,Valley Leisure Ltd
Cultural & Related,Recreation & Sport,Community and Leisure ,Third Party Payments,Other Establishments,ALC Management Contract-TVL,18/06/2015,155465,3916.66,Valley Leisure Ltd
Environmental & Regulatory,Regulatory Services,Housing and Environmental Health ,Supplies & Services,Grants and subscriptions,Capital Grants,11/06/2015,156680,4723.25,Hampshire Mobility Services
Environmental & Regulatory,Regulatory Services,Housing and Environmental Health ,Supplies & Services,Grants and subscriptions,Capital Grants,04/06/2015,156109,4771.51,Aster Property
Central Services to the Public,Management & Support Services,Finance,Supplies & Services,"Printing, Stationery & General Office Expenses",Postage Costs,04/06/2015,156106,5000,Neopost Ltd
Central Services to the Public,Emergency Planning,Corporate & Democratic,Supplies & Services,Grants & Subscriptions,Grants,11/06/2015,156685,5000,Personal data - Data Protection Act 1998
Central Services to the Public,Emergency Planning,Corporate & Democratic,Supplies & Services,Grants & Subscriptions,Grants,25/06/2015,157710,5000,Personal data - Data Protection Act 1998
Environmental & Regulatory,Regulatory Services,Housing and Environmental Health ,Supplies & Services,Grants and subscriptions,Capital Grants,04/06/2015,156112,5148.98,Bentley Mobility Services
Environmental & Regulatory,Regulatory Services,Housing and Environmental Health ,Supplies & Services,Grants and subscriptions,Capital Grants,11/06/2015,156693,5253.32,Aster Property
Central Services to the Public,Management & Support Services,IT,Supplies & Services,Communications & Computing,Software Maintenance,11/06/2015,156647,4383.75,It Bus Ltd
Central Services to the Public,Management & Support Services,Estates and Economic Development ,Supplies & Services,"Equipment, Furniture & Materials",Purchase Materials (Job Cost),11/06/2015,156518,4504.66,Edmundson Electrical Ltd
Central Services to the Public,Management & Support Services,IT,Supplies & Services,Communications & Computing,Computer Hardware,11/06/2015,156507,4851.6,Storm Technologies
Central Services to the Public,Management & Support Services,Environmental,Transport Related Expenditure,Direct Transport Costs,Diesel,25/06/2015,157106,4574.04,Wessex Petroleum Limited
Central Services to the Public,Management & Support Services,Environmental,Transport Related Expenditure,Direct Transport Costs,Red Derv,25/06/2015,157106,430.65,Wessex Petroleum Limited
"Highways, Roads & Transport",Parking Services,Plan Pol & Transport,Supplies & Services,Services,Professional Fees,11/06/2015,156072,4965.13,Keyline Chartered Security Ltd
Central Services to the Public,Management & Support Services,IT,Supplies & Services,Services,Professional Fees,04/06/2015,154911,5050,Capita Business Services
Central Services to the Public,Management & Support Services,Environmental,Transport Related Expenditure,Direct Transport Costs,Diesel,18/06/2015,156376,5260.04,Wessex Petroleum Limited
Central Services to the Public,Management & Support Services,Estates and Economic Development ,Supplies & Services,"Equipment, Furniture & Materials",Purchase Materials (Job Cost),18/06/2015,156883,5400,Goodwater Ltd
"Highways, Roads & Transport",Parking Services,Plan Pol & Transport,Premises related Expenditure,Repairs Alterations & Maintenance of Buildings,Car Park General Repairs,25/06/2015,157081,5546,Irvine Grenson Ltd
Environmental & Regulatory,Street Cleansing (not chargeable to Highways),Environmental,Transport Related Expenditure,Direct Transport Costs,Repair Materials,04/06/2015,155954,5550.9,Johnston Sweepers Ltd
Environmental & Regulatory,Waste management,Environmental,Supplies & Services,Miscellaneous Expenses,Recycling Bank Emptying,11/06/2015,156313,5671.26,Fcc Recycling (Uk) Ltd
Housing Services,"Housing strategy, advice and enabling",Housing and Environmental Health ,Supplies & Services,Grants & Subscriptions,Grants,04/06/2015,155883,6860,Community Action Hampshire
Cultural & Related,Open Spaces,Community and Leisure ,Premises related Expenditure,Grounds Maintenance Costs,Non Contract Tree Works,18/06/2015,155953,6002.18,Gristwood & Toms Ltd
Planning & Development,Planning Policy,Plan Pol & Transport,Supplies & Services,Services,Project Consultancy - Policy,11/06/2015,156318,6023.3,Bnp Paribas Real Estate & Property Mgt Uk Ltd
Environmental & Regulatory,Regulatory Services,Housing and Environmental Health ,Supplies & Services,Grants and subscriptions,Capital Grants,18/06/2015,157121,7695,Westgate Construction (Hertford) Ltd
Cultural & Related,Recreation & Sport,Estates and Economic Development ,Premises related Expenditure,Water Services,Water And Sewerage Charges,18/06/2015,156887,8581.73,Southern Water
Environmental & Regulatory,Community Development,Community and Leisure ,Third Party Payments,Other Local Authorities,Hampshire C C -Agency Service,18/06/2015,156909,10000,Romsey Community School
Environmental & Regulatory,Regulatory Services,Housing and Environmental Health ,Supplies & Services,Grants and subscriptions,Capital Grants,04/06/2015,156108,10542.4,J D Codd Ltd
Central Services to the Public,Management & Support Services,Estates and Economic Development ,Third Party Payments,Private contractors,Main Contractor Costs,04/06/2015,153164,8820,Rocon Contractors Ltd
Central Services to the Public,Management & Support Services,Community and Leisure ,Supplies & Services,Grants & Subscriptions,Grants,18/06/2015,156908,11311.05,Romsey Community School
Planning & Development,Community Development,Community and Leisure ,Supplies & Services,Grants & Subscriptions,Grants,10/06/2015,156496,12002,Test Valley Community Services
Central Services to the Public,Management & Support Services,IT,Supplies & Services,Communications & Computing,Hardware Maintenance,04/06/2015,155497,12180.5,Vodafone Ltd
Central Services to the Public,Management & Support Services,Chief Executive's,Supplies & Services,Communications & Computing,Software Maintenance,25/06/2015,154431,15571,Northgate Public Services Uk Ltd
Central Services to the Public,Emergency Planning,Corporate & Democratic,Supplies & Services,Miscellaneous Expenses,Emergency Planning Costs,25/06/2015,152386,19339,Hampshire County Council
Central Services to the Public,Management & Support Services,Estates and Economic Development ,Third Party Payments,Other Establishments,Private Contractors,04/06/2015,156041,16500,Protec Roofing Ltd
Central Services to the Public,Emergency Planning,Corporate & Democratic,Supplies & Services,Grants & Subscriptions,Grants,25/06/2015,157707,20000,Penton Grafton Cottage Charities
Central Services to the Public,Management & Support Services,Environmental,Transport Related Expenditure,Direct Transport Costs,Vehicles and Plant,25/06/2015,157311,17404.08,Ford Motor Co Ltd
Cultural & Related,Open Spaces,Community and Leisure ,Transport Related Expenditure,Direct Transport Costs,Licences,25/06/2015,157311,280,Ford Motor Co Ltd
Cultural & Related,Culture & Heritage,Community and Leisure ,Supplies & Services,Grants & Subscriptions,Grants,11/06/2015,156611,23185,King John'S House & Heritage Centre
Central Services to the Public,Management & Support Services,Estates and Economic Development ,Third Party Payments,Other Establishments,Private Contractors,04/06/2015,156048,20905.77,Prb Building Services
Central Services to the Public,Management & Support Services,Estates and Economic Development ,Third Party Payments,Other Establishments,Private Contractors,18/06/2015,156869,24769,Temple Lifts Ltd
Cultural & Related,Recreation & Sport,Community and Leisure ,Third Party Payments,Private contractors,Main Contractor Costs,25/06/2015,156868,29968.5,Purbeck Civil Engineering Limited
Cultural & Related,Recreation & Sport,Community and Leisure ,Third Party Payments,Other Establishments,ALC Management Contract-TVL,18/06/2015,156067,33166.67,Valley Leisure Ltd
Cultural & Related,Recreation & Sport,Community and Leisure ,Third Party Payments,Other Establishments,ALC Management Contract-TVL,18/06/2015,156371,33666.67,Valley Leisure Ltd
Central Services to the Public,Management & Support Services,Estates and Economic Development ,Supplies & Services,Services,Professional Fees,04/06/2015,156031,34510,Faithful And Gould
Environmental & Regulatory,Regulatory Services,Estates and Economic Development ,Premises related Expenditure,Cleaning and domestic supplies,Contract Cleaning - Non Estates,04/06/2015,155800,12779.48,Friends Life Company Ltd
"Highways, Roads & Transport",Parking Services,Plan Pol & Transport,Supplies & Services,Services,Professional Fees,04/06/2015,155800,32861.52,Friends Life Company Ltd
Cultural & Related,Recreation & Sport,Community and Leisure ,Third Party Payments,Private contractors,Main Contractor Costs,25/06/2015,157287,59079,R J Winnicott Ltd
Cultural & Related,Tourism,Estates and Economic Development ,Supplies & Services,Grants & Subscriptions,Grants,04/06/2015,152712,69690,Tourism South East
External Trading Accounts,Industrial Estates,Estates and Economic Development ,Supplies & Services,Services,Professional Fees,25/06/2015,157234,160624.22,Kier Ventures Ltd
